fUSD/lending_fUSD_20250526
["ID","MTS","AMOUNT","RATE_DAILY","PERIOD"]
[362387546,1748245275206,-610.87,0.000342,31]
[362387547,1748245275263,-610.87,0.000342,31]
[362387548,1748245275322,-610.87,0.000342,31]
[362387549,1748245275377,-610.87,0.000342,31]
[362387550,1748245275431,-610.87,0.000342,31]
[362387551,1748245275488,-610.87,0.000342,31]
[362387552,1748245275541,-610.87,0.000342,31]
[362387553,1748245275598,-610.87,0.000342,31]
[362387554,1748245275654,-610.87,0.000342,31]
[362387555,1748245275708,-610.87,0.000342,31]
[362387556,1748245275765,-610.87,0.000345,31]
[362387557,1748245275820,-610.87,0.000345,31]
[362387558,1748245275877,-610.87,0.000345,31]
[362387559,1748245275932,-610.87,0.000345,31]
[362387560,1748245275985,-610.87,0.000345,31]
[362387561,1748245276037,-610.87,0.000345,31]
[362387562,1748245276090,-610.87,0.000345,31]
[362387563,1748245276141,-610.87,0.000345,31]
[362387564,1748245276193,-610.87,0.000345,31]
[362387565,1748245276247,-610.87,0.000345,31]
[362387566,1748245276300,-610.87,0.000345,31]
[362387567,1748245276356,-610.87,0.000345,31]
[362387568,1748245276409,-610.87,0.000345,31]
[362387569,1748245276463,-610.87,0.000345,31]
[362387570,1748245276521,-610.87,0.000345,31]
[362387571,1748245276574,-610.87,0.000345,31]
[362387572,1748245276627,-610.87,0.000345,31]
[362387573,1748245276682,-610.87,0.000345,31]
[362387574,1748245276734,-610.87,0.000345,31]
[362387575,1748245276788,-610.87,0.000345,31]
[362387576,1748245276842,-610.87,0.000345,31]
[362387577,1748245276894,-610.87,0.000345,31]
[362387578,1748245276947,-610.87,0.000345,31]
[362387579,1748245276994,-1305.287,0.00034533,39]
[362387580,1748245277041,-179.261,0.00034533,39]
[362387581,1748245277092,-231.32420352,0.00034762,31]
[362387582,1748245277144,-610.87,0.000348,31]
[362387583,1748245277196,-610.87,0.000348,31]
[362387584,1748245277248,-610.87,0.000348,31]
[362387585,1748245277298,-610.87,0.000348,31]
[362387586,1748245277350,-610.87,0.000348,31]
[362387587,1748245277401,-610.87,0.000348,31]
[362387588,1748245277454,-610.87,0.000348,31]
[362387589,1748245277506,-610.87,0.000348,31]
[362387590,1748245277561,-610.87,0.000348,31]
[362387591,1748245277613,-610.87,0.000348,31]
[362387592,1748245277664,-610.87,0.000348,31]
[362387593,1748245277716,-610.87,0.000348,31]
[362387594,1748245277768,-610.87,0.000348,31]
[362387595,1748245277821,-610.87,0.000348,31]
[362387596,1748245277872,-610.87,0.000348,31]
[362387597,1748245277924,-610.87,0.000348,31]
[362387598,1748245277970,-307.77913,0.000349,120]
[362387599,1748245278017,-413.25015914,0.00035,30]
[362387600,1748245278064,-900.0,0.00035,36]
[362387601,1748245278112,-159.0,0.000351,120]
[362387602,1748245278363,-168.0,0.000351,120]
[362387603,1748245278417,-231.32420352,0.00035555,33]
[362387604,1748245278461,-307.77913,0.000358,120]
[362387605,1748245278516,-231.32420352,0.00036348,34]
[362387606,1748245278560,-475.47033,0.00036595,30]
[362387607,1748245278607,-325.0,0.00036679,30]
[362387608,1748245278654,-325.0,0.00036679,30]
[362387609,1748245278701,-325.0,0.00036679,30]
[362387610,1748245278747,-325.0,0.00036679,30]
[362387611,1748245278794,-325.0,0.00036679,30]
[362387612,1748245278842,-325.0,0.00036679,30]
[362387613,1748245278888,-325.0,0.00036679,30]
[362387614,1748245278933,-325.0,0.00036679,30]
[362387615,1748245278978,-325.0,0.00036679,30]
[362387616,1748245279023,-325.0,0.00036679,30]
[362387617,1748245279068,-325.0,0.00036679,30]
[362387618,1748245279114,-325.0,0.00036679,30]
[362387619,1748245279158,-325.0,0.00036679,30]
[362387620,1748245279203,-325.0,0.00036679,30]
[362387621,1748245279246,-628.0,0.00036682,30]
[362387622,1748245279292,-628.0,0.00036682,30]
[362387623,1748245279337,-628.0,0.00036682,30]
[362387624,1748245279382,-628.0,0.00036682,30]
[362387625,1748245279426,-628.0,0.00036682,30]
[362387626,1748245279472,-628.0,0.00036682,30]
[362387627,1748245279520,-628.0,0.00036682,30]
[362387628,1748245279566,-628.0,0.00036682,30]
[362387629,1748245279611,-628.0,0.00036682,30]
[362387630,1748245279656,-628.0,0.00036682,30]
[362387631,1748245279701,-628.0,0.00036682,30]
[362387632,1748245279745,-628.0,0.00036682,30]
[362387633,1748245279791,-628.0,0.00036682,30]
[362387634,1748245279836,-628.0,0.00036682,30]
[362387635,1748245279882,-325.0,0.00036691,30]
[362387636,1748245279928,-325.0,0.00036691,30]
[362387637,1748245279974,-325.0,0.00036691,30]
[362387638,1748245280019,-325.0,0.00036691,30]
[362387639,1748245280063,-325.0,0.00036691,30]
[362387640,1748245280107,-325.0,0.00036691,30]
[362387641,1748245280149,-325.0,0.00036691,30]
[362387642,1748245280195,-325.0,0.00036691,30]
[362387643,1748245280238,-325.0,0.00036691,30]
[362387644,1748245280283,-325.0,0.00036691,30]
[362387645,1748245280326,-325.0,0.00036691,30]
[362387646,1748245280370,-325.0,0.00036691,30]
[362387647,1748245280416,-325.0,0.00036691,30]
[362387648,1748245280460,-325.0,0.00036691,30]
[362387649,1748245280509,-628.0,0.00036695,30]
[362387650,1748245280554,-628.0,0.00036695,30]
[362387651,1748245280604,-628.0,0.00036695,30]
[362387652,1748245280649,-628.0,0.00036695,30]
[362387653,1748245280695,-628.0,0.00036695,30]
[362387654,1748245280742,-628.0,0.00036695,30]
[362387655,1748245280785,-628.0,0.00036695,30]
[362387656,1748245280832,-628.0,0.00036695,30]
[362387657,1748245280879,-628.0,0.00036695,30]
[362387658,1748245280926,-628.0,0.00036695,30]
[362387659,1748245280969,-628.0,0.00036695,30]
[362387660,1748245281015,-628.0,0.00036695,30]
[362387661,1748245281059,-628.0,0.00036695,30]
[362387662,1748245281103,-628.0,0.00036695,30]
[362387663,1748245281149,-307.77913,0.000367,120]
[362387664,1748245281194,-325.0,0.00036704,30]
[362387665,1748245281237,-325.0,0.00036704,30]
[362387666,1748245281281,-325.0,0.00036704,30]
[362387667,1748245281325,-325.0,0.00036704,30]
[362387668,1748245281371,-325.0,0.00036704,30]
[362387669,1748245281414,-325.0,0.00036704,30]
[362387670,1748245281459,-325.0,0.00036704,30]
[362387671,1748245281505,-325.0,0.00036704,30]
[362387672,1748245281552,-325.0,0.00036704,30]
[362387673,1748245281599,-325.0,0.00036704,30]
[362387674,1748245281647,-325.0,0.00036704,30]
[362387675,1748245281693,-325.0,0.00036704,30]
[362387676,1748245281741,-325.0,0.00036704,30]
[362387677,1748245281786,-325.0,0.00036704,30]
[362387678,1748245281832,-628.0,0.00036708,30]
[362387679,1748245281878,-628.0,0.00036708,30]
[362387680,1748245281924,-628.0,0.00036708,30]
[362387681,1748245281969,-628.0,0.00036708,30]
[362387682,1748245282012,-628.0,0.00036708,30]
[362387683,1748245282056,-628.0,0.00036708,30]
[362387684,1748245282100,-628.0,0.00036708,30]
[362387685,1748245282144,-628.0,0.00036708,30]
[362387686,1748245282189,-628.0,0.00036708,30]
[362387687,1748245282236,-628.0,0.00036708,30]
[362387688,1748245282282,-628.0,0.00036708,30]
[362387689,1748245282329,-628.0,0.00036708,30]
[362387690,1748245282376,-628.0,0.00036708,30]
[362387691,1748245282422,-628.0,0.00036708,30]
[362387692,1748245282466,-325.0,0.00036716,30]
[362387693,1748245282516,-325.0,0.00036716,30]
[362387694,1748245282565,-325.0,0.00036716,30]
[362387695,1748245282611,-325.0,0.00036716,30]
[362387696,1748245282656,-325.0,0.00036716,30]
[362387697,1748245282882,-325.0,0.00036716,30]
[362387698,1748245282930,-325.0,0.00036716,30]
[362387699,1748245282978,-325.0,0.00036716,30]
[362387700,1748245283024,-325.0,0.00036716,30]
[362387701,1748245283072,-325.0,0.00036716,30]
[362387702,1748245283119,-325.0,0.00036716,30]
[362387703,1748245283173,-325.0,0.00036716,30]
[362387704,1748245283218,-325.0,0.00036716,30]
[362387705,1748245283264,-325.0,0.00036716,30]
[362387706,1748245283309,-628.0,0.0003672,30]
[362387707,1748245283368,-628.0,0.0003672,30]
[362387708,1748245283413,-628.0,0.0003672,30]
[362387709,1748245283457,-628.0,0.0003672,30]
[362387710,1748245283501,-628.0,0.0003672,30]
[362387711,1748245283545,-628.0,0.0003672,30]
[362387712,1748245283594,-628.0,0.0003672,30]
[362387713,1748245283639,-628.0,0.0003672,30]
[362387714,1748245283686,-628.0,0.0003672,30]
[362387715,1748245283732,-628.0,0.0003672,30]
[362387716,1748245283777,-628.0,0.0003672,30]
[362387717,1748245283826,-628.0,0.0003672,30]
[362387718,1748245283872,-628.0,0.0003672,30]
[362387719,1748245283919,-628.0,0.0003672,30]
[362387720,1748245283964,-325.0,0.00036729,30]
[362387721,1748245284010,-325.0,0.00036729,30]
[362387722,1748245284055,-325.0,0.00036729,30]
[362387723,1748245284097,-325.0,0.00036729,30]
[362387724,1748245284144,-325.0,0.00036729,30]
[362387725,1748245284191,-325.0,0.00036729,30]
[362387726,1748245284240,-325.0,0.00036729,30]
[362387727,1748245284284,-325.0,0.00036729,30]
[362387728,1748245284330,-325.0,0.00036729,30]
[362387729,1748245284375,-325.0,0.00036729,30]
[362387730,1748245284420,-325.0,0.00036729,30]
[362387731,1748245284467,-325.0,0.00036729,30]
[362387732,1748245284515,-325.0,0.00036729,30]
[362387733,1748245284564,-325.0,0.00036729,30]
[362387734,1748245284612,-628.0,0.00036733,30]
[362387735,1748245284662,-628.0,0.00036733,30]
[362387736,1748245284708,-628.0,0.00036733,30]
[362387737,1748245284755,-628.0,0.00036733,30]
[362387738,1748245284802,-628.0,0.00036733,30]
[362387739,1748245284847,-628.0,0.00036733,30]
[362387740,1748245284894,-628.0,0.00036733,30]
[362387741,1748245284942,-628.0,0.00036733,30]
[362387742,1748245284989,-628.0,0.00036733,30]
[362387743,1748245285034,-628.0,0.00036733,30]
[362387744,1748245285080,-628.0,0.00036733,30]
[362387745,1748245285125,-628.0,0.00036733,30]
[362387746,1748245285172,-628.0,0.00036733,30]
[362387747,1748245285218,-628.0,0.00036733,30]
[362387748,1748245285265,-475.47033,0.00036795,30]
[362387749,1748245285310,-475.47033,0.00036995,30]
[362387750,1748245285358,-1800.0,0.00037,38]
[362387751,1748245285409,-231.32420352,0.00037141,36]
[362387752,1748245285455,-172.46406958,0.0003715,120]
[362387753,1748245285504,-150.0,0.00037191,120]
[362387754,1748245285551,-475.47033,0.00037195,30]
[362387755,1748245285598,-347.73155204,0.000372,120]
[362387756,1748245285646,-347.73155201,0.000372,120]
[362387757,1748245285693,-347.73155201,0.000372,120]
[362387758,1748245285740,-347.73155201,0.000372,120]
[362387759,1748245285788,-347.73155201,0.000372,120]
[362387760,1748245285834,-500.0,0.00037259,60]
[362387761,1748245285882,-500.0,0.00037259,60]
[362387762,1748245285929,-475.47033,0.00037395,30]
[362387763,1748245285974,-475.47033,0.00037595,30]
[362387764,1748245286018,-307.77913,0.000376,120]
[362387765,1748245286065,-233.04,0.00037671,120]
[362387766,1748245286110,-1333.0,0.00037753,120]
[362387767,1748245286158,-475.47033,0.00037795,30]
[362387768,1748245286211,-231.32420352,0.00037934,37]
[362387769,1748245286258,-475.47033,0.00037995,30]
[362387770,1748245286304,-1050.08714193,0.00038,39]
[362387771,1748245286349,-675.00556172,0.00038,30]
[362387772,1748245286395,-475.47033,0.00038195,30]
[362387773,1748245286446,-500.0,0.00038355,60]
[362387774,1748245286493,-500.0,0.00038355,60]
[362387775,1748245286540,-475.47033,0.00038395,30]
[362387776,1748245286586,-2068.28170397,0.000384,33]
[362387777,1748245286632,-307.77913,0.000385,120]
[362387778,1748245286676,-475.47033,0.00038595,30]
[362387779,1748245286723,-355.804898,0.00038655,120]
[362387780,1748245286769,-500.0,0.00038727,120]
[362387781,1748245286821,-231.32420352,0.00038728,39]
[362387782,1748245286867,-475.47033,0.00038795,30]
[362387783,1748245286915,-475.47033,0.00038995,30]
[362387784,1748245286963,-900.0,0.00039,40]
[362387785,1748245287013,-475.47033,0.00039195,30]
[362387786,1748245287064,-475.47033,0.00039395,30]
[362387787,1748245287110,-307.77913,0.000394,120]
[362387788,1748245287157,-150.0,0.00039416,120]
[362387789,1748245287204,-644.79446245,0.00039417,45]
[362387790,1748245287251,-644.79446245,0.00039417,45]
[362387791,1748245287480,-511.75634896,0.00039451,60]
[362387792,1748245287530,-500.0,0.00039451,60]
[362387793,1748245287575,-2848.96139,0.00039451,30]
[362387794,1748245287631,-231.32420352,0.00039521,40]
[362387795,1748245287678,-621.78829552,0.00039687,30]
[362387796,1748245287725,-621.78829552,0.00039687,30]
[362387797,1748245287771,-599.60298507,0.00039779,38]
[362387798,1748245287818,-599.60298507,0.00039779,38]
[362387799,1748245287864,-300.0,0.00039779,38]
[362387800,1748245287911,-475.47033,0.00039795,30]
[362387801,1748245287960,-150.0,0.0003999,120]
[362387802,1748245288009,-475.47033,0.00039995,30]
[362387803,1748245288057,-578.20924308,0.00039997,31]
[362387804,1748245288106,-578.20924308,0.00039997,31]
[362387805,1748245288153,-1156.41848616,0.00039997,31]
[362387806,1748245288202,-300.0,0.00039997,31]
[362387807,1748245288252,-537.6845,0.00039999,40]
[362387808,1748245288300,-537.6845,0.00039999,40]
[362387809,1748245288348,-151.0,0.00039999,40]
[362387810,1748245288396,-557.5788265,0.00039999,45]
[362387811,1748245288444,-557.5788265,0.00039999,45]
[362387812,1748245288492,-298.13963362,0.00039999,45]
[362387813,1748245288537,-1075.369,0.00039999,40]
[362387814,1748245288584,-1115.157653,0.00039999,45]
[362387815,1748245288628,-300.0,0.00039999,40]
[362387816,1748245288676,-300.0,0.00039999,45]
[362387817,1748245288726,-500.0,0.0004,90]
[362387818,1748245288770,-340.71440083,0.0004,120]
[362387819,1748245288816,-651.4243171,0.0004,120]
[362387820,1748245288863,-994.3457407,0.0004,40]
[362387821,1748245288908,-10000.0,0.0004,120]
[362387822,1748245288952,-10000.0,0.0004,120]
[362387823,1748245289002,-10000.0,0.0004,120]
[362387824,1748245289046,-10000.0,0.0004,120]
[362387825,1748245289091,-10000.0,0.0004,120]
[362387826,1748245289134,-10000.0,0.0004,120]
[362387827,1748245289179,-10000.0,0.0004,120]
[362387828,1748245289223,-10000.0,0.0004,120]
[362387829,1748245289268,-10000.0,0.0004,120]
[362387830,1748245289312,-10000.0,0.0004,120]
[362387831,1748245289357,-10000.0,0.0004,120]
[362387832,1748245289402,-10000.0,0.0004,120]
[362387833,1748245289447,-10000.0,0.0004,120]
[362387834,1748245289492,-10000.0,0.0004,120]
[362387835,1748245289537,-10000.0,0.0004,120]
[362387836,1748245289581,-10000.0,0.0004,30]
[362387837,1748245289629,-150.0,0.00040107,120]
[362387838,1748245289675,-475.47033,0.00040195,30]
[362387839,1748245289722,-307.77913,0.000403,120]
[362387840,1748245289774,-231.32420352,0.00040314,42]
[362387841,1748245289821,-475.47033,0.00040395,30]
[362387842,1748245289883,-417.28721952,0.000405,30]
[362387843,1748245289931,-500.0,0.00040547,60]
[362387844,1748245289979,-475.47033,0.00040595,30]
[362387845,1748245290026,-150.0,0.00040618,120]
[362387846,1748245290072,-888.0,0.00040713,30]
[362387847,1748245290118,-475.47033,0.00040795,30]
[362387848,1748245290164,-475.47033,0.00040995,30]
[362387849,1748245290212,-518.5,0.00040999,41]
[362387850,1748245290259,-518.5,0.00040999,41]
[362387851,1748245290307,-151.0,0.00040999,41]
[362387852,1748245290352,-1037.0,0.00040999,41]
[362387853,1748245290401,-300.0,0.00040999,41]
[362387854,1748245290448,-915.53950995,0.00041,30]
[362387855,1748245290497,-160.0,0.00041,37]
[362387856,1748245290545,-158.0,0.00041,30]
[362387857,1748245290595,-317.0,0.00041,90]
[362387858,1748245290645,-250.0,0.00041,90]
[362387859,1748245290690,-500.179572,0.00041,34]
[362387860,1748245290737,-2001.16700773,0.00041,30]
[362387861,1748245290783,-150.0,0.00041068,120]
[362387862,1748245290837,-151.0,0.00041094,30]
[362387863,1748245290894,-500.0,0.00041094,30]
[362387864,1748245290944,-156.48634123,0.00041094,30]
[362387865,1748245290998,-500.0,0.00041094,30]
[362387866,1748245291053,-151.0,0.00041094,30]
[362387867,1748245291104,-1000.0,0.00041094,30]
[362387868,1748245291153,-300.0,0.00041094,30]
[362387869,1748245291207,-200.0,0.00041094,30]
[362387870,1748245291259,-500.0,0.00041095,120]
[362387871,1748245291314,-420.0,0.00041095,30]
[362387872,1748245291369,-446.31770014,0.00041095,30]
[362387873,1748245291422,-10000.0,0.00041095,30]
[362387874,1748245291474,-1000.0,0.00041095,120]
[362387875,1748245291530,-230.0,0.00041096,120]
[362387876,1748245291579,-500.0,0.00041096,60]
[362387877,1748245291626,-500.0,0.00041096,60]
[362387878,1748245291672,-500.0,0.00041096,60]
[362387879,1748245291721,-184.75965783,0.00041096,31]
[362387880,1748245291766,-54328.00927379,0.000411,30]
[362387881,1748245291813,-2886.60137,0.000411,120]
[362387882,1748245291859,-2886.60137,0.000411,120]
[362387883,1748245291906,-2886.60137,0.000411,120]
[362387884,1748245291951,-2886.60137,0.000411,120]
[362387885,1748245292197,-2886.60137,0.000411,120]
[362387886,1748245292246,-2886.60137,0.000411,120]
[362387887,1748245292296,-2886.60137,0.000411,120]
[362387888,1748245292344,-2886.60137,0.000411,120]
[362387889,1748245292390,-2886.60137,0.000411,120]
[362387890,1748245292437,-2886.60137,0.000411,120]
[362387891,1748245292488,-2886.60137,0.000411,120]
[362387892,1748245292535,-2886.60137,0.000411,120]
[362387893,1748245292581,-2886.60137,0.000411,120]
[362387894,1748245292627,-2886.60137,0.000411,120]
[362387895,1748245292674,-2886.60137,0.000411,120]
[362387896,1748245292720,-2886.60137,0.000411,120]
[362387897,1748245292765,-2886.60137,0.000411,120]
[362387898,1748245292812,-2886.60137,0.000411,120]
[362387899,1748245292859,-2886.60137,0.000411,120]
[362387900,1748245292914,-2886.6,0.000411,120]
[362387901,1748245292961,-6735.40319666,0.000411,120]
[362387902,1748245293006,-6735.40319666,0.000411,120]
[362387903,1748245293053,-6735.40319666,0.000411,120]
[362387904,1748245293099,-6735.40319666,0.000411,120]
[362387905,1748245293145,-6735.40319666,0.000411,120]
[362387906,1748245293191,-6735.40319666,0.000411,120]
[362387907,1748245293237,-6735.40319666,0.000411,120]
[362387908,1748245293282,-6735.40319666,0.000411,120]
[362387909,1748245293329,-6735.40319666,0.000411,120]
[362387910,1748245293376,-6735.40319666,0.000411,120]
[362387911,1748245293425,-6735.40319666,0.000411,120]
[362387912,1748245293480,-6735.40319666,0.000411,120]
[362387913,1748245293533,-6735.40319666,0.000411,120]
[362387914,1748245293584,-6735.40319666,0.000411,120]
[362387915,1748245293633,-6735.40319666,0.000411,120]
[362387916,1748245293680,-6735.40319666,0.000411,120]
[362387917,1748245293730,-6735.40319666,0.000411,120]
[362387918,1748245293780,-6735.40319666,0.000411,120]
[362387919,1748245293829,-6735.40319666,0.000411,120]
[362387920,1748245293875,-6735.4,0.000411,120]
[362387921,1748245293926,-872.42328219,0.000411,120]
[362387922,1748245293973,-872.42328219,0.000411,120]
[362387923,1748245294025,-872.42328219,0.000411,120]
[362387924,1748245294071,-872.42328219,0.000411,120]
[362387925,1748245294119,-872.42328219,0.000411,120]
[362387926,1748245294163,-872.42328219,0.000411,120]
[362387927,1748245294211,-872.42328219,0.000411,120]
[362387928,1748245294258,-872.42328219,0.000411,120]
[362387929,1748245294305,-872.42328219,0.000411,120]
[362387930,1748245294353,-872.42328219,0.000411,120]
[362387931,1748245294401,-872.42328219,0.000411,120]
[362387932,1748245294449,-872.42328219,0.000411,120]
[362387933,1748245294497,-872.42328219,0.000411,120]
[362387934,1748245294543,-872.42328219,0.000411,120]
[362387935,1748245294590,-872.42328219,0.000411,120]
[362387936,1748245294640,-872.42328219,0.000411,120]
[362387937,1748245294689,-872.42328219,0.000411,120]
[362387938,1748245294737,-872.42328219,0.000411,120]
[362387939,1748245294783,-872.42328219,0.000411,120]
[362387940,1748245294831,-872.42,0.000411,120]
[362387941,1748245294877,-2035.6543251,0.000411,120]
[362387942,1748245294927,-2035.6543251,0.000411,120]
[362387943,1748245294973,-2035.6543251,0.000411,120]
[362387944,1748245295020,-2035.6543251,0.000411,120]
[362387945,1748245295066,-2035.6543251,0.000411,120]
[362387946,1748245295110,-2035.6543251,0.000411,120]
[362387947,1748245295157,-2035.6543251,0.000411,120]
[362387948,1748245295206,-2035.6543251,0.000411,120]
[362387949,1748245295252,-2035.6543251,0.000411,120]
[362387950,1748245295297,-2035.6543251,0.000411,120]
[362387951,1748245295343,-2035.6543251,0.000411,120]
[362387952,1748245295387,-2035.6543251,0.000411,120]
[362387953,1748245295434,-2035.6543251,0.000411,120]
[362387954,1748245295478,-2035.6543251,0.000411,120]
[362387955,1748245295531,-2035.6543251,0.000411,120]
[362387956,1748245295579,-2035.6543251,0.000411,120]
[362387957,1748245295625,-2035.6543251,0.000411,120]
[362387958,1748245295670,-2035.6543251,0.000411,120]
[362387959,1748245295717,-2035.6543251,0.000411,120]
[362387960,1748245295760,-2035.65,0.000411,120]
[362387961,1748245295803,-485.04019941,0.000411,120]
[362387962,1748245295847,-485.04019941,0.000411,120]
[362387963,1748245295893,-485.04019941,0.000411,120]
[362387964,1748245295937,-485.04019941,0.000411,120]
[362387965,1748245295982,-485.04019941,0.000411,120]
[362387966,1748245296027,-485.04019941,0.000411,120]
[362387967,1748245296073,-485.04019941,0.000411,120]
[362387968,1748245296117,-485.04019941,0.000411,120]
[362387969,1748245296162,-485.04019941,0.000411,120]
[362387970,1748245296208,-485.04019941,0.000411,120]
[362387971,1748245296254,-485.04019941,0.000411,120]
[362387972,1748245296300,-485.04019941,0.000411,120]
[362387973,1748245296345,-485.04019941,0.000411,120]
[362387974,1748245296392,-485.04019941,0.000411,120]
[362387975,1748245296436,-485.04019941,0.000411,120]
[362387976,1748245296485,-485.04019941,0.000411,120]
[362387977,1748245296531,-485.04019941,0.000411,120]
[362387978,1748245296575,-485.04019941,0.000411,120]
[362387979,1748245296623,-485.04019941,0.000411,120]
[362387980,1748245296833,-485.04,0.000411,120]
[362387981,1748245296879,-1131.7604653,0.000411,120]
[362387982,1748245296928,-1131.7604653,0.000411,120]
[362387983,1748245296974,-1131.7604653,0.000411,120]
[362387984,1748245297025,-1131.7604653,0.000411,120]
[362387985,1748245297070,-1131.7604653,0.000411,120]
[362387986,1748245297117,-1131.7604653,0.000411,120]
[362387987,1748245297162,-1131.7604653,0.000411,120]
[362387988,1748245297208,-1131.7604653,0.000411,120]
[362387989,1748245297254,-1131.7604653,0.000411,120]
[362387990,1748245297301,-1131.7604653,0.000411,120]
[362387991,1748245297346,-1131.7604653,0.000411,120]
[362387992,1748245297395,-1131.7604653,0.000411,120]
[362387993,1748245297439,-1131.7604653,0.000411,120]
[362387994,1748245297490,-1131.7604653,0.000411,120]
[362387995,1748245297536,-1131.7604653,0.000411,120]
[362387996,1748245297583,-1131.7604653,0.000411,120]
[362387997,1748245297629,-1131.7604653,0.000411,120]
[362387998,1748245297679,-1131.7604653,0.000411,120]
[362387999,1748245297726,-1131.7604653,0.000411,120]
[362388000,1748245297777,-1131.76,0.000411,120]
[362388001,1748245297833,-231.32420352,0.00041107,44]
[362388002,1748245297881,-16289.0,0.00041111,120]
[362388003,1748245297927,-695.57622151,0.00041123,120]
[362388004,1748245297970,-150.5,0.0004118,120]
[362388005,1748245298015,-150.5,0.0004119,120]
[362388006,1748245298058,-475.47033,0.00041195,30]
[362388007,1748245298102,-150.5,0.000412,120]
[362388008,1748245298147,-307.77913,0.000412,120]
[362388009,1748245298191,-159.0,0.000412,120]
[362388010,1748245298236,-168.0,0.000412,120]
[362388011,1748245298282,-150.0,0.00041223,120]
[362388012,1748245298326,-150.0,0.00041228,120]
[362388013,1748245298374,-150.0,0.00041249,120]
[362388014,1748245298417,-150.5,0.0004128,120]
[362388015,1748245298463,-150.5,0.0004128,120]
[362388016,1748245298508,-150.5,0.000413,120]
[362388017,1748245298554,-14521.6526839,0.000413,60]
[362388018,1748245298599,-150.0,0.0004131,120]
[362388019,1748245298645,-250.0,0.0004137,90]
[362388020,1748245298689,-475.47033,0.00041395,30]
[362388021,1748245298737,-1893.2,0.00041397,120]
[362388022,1748245298785,-1893.2,0.00041397,120]
[362388023,1748245298834,-1893.2,0.00041397,120]
[362388024,1748245298878,-1893.2,0.00041397,120]
[362388025,1748245298923,-1893.2,0.00041397,120]
[362388026,1748245298967,-1893.2,0.00041397,120]
[362388027,1748245299011,-1893.2,0.00041397,120]
[362388028,1748245299057,-1893.2,0.00041397,120]
[362388029,1748245299100,-1893.2,0.00041397,120]
[362388030,1748245299144,-1893.2,0.00041397,120]
[362388031,1748245299187,-1893.2,0.00041397,120]
[362388032,1748245299230,-1893.2,0.00041397,120]
[362388033,1748245299273,-1893.2,0.00041397,120]
[362388034,1748245299317,-1893.2,0.00041397,120]
[362388035,1748245299361,-1893.2,0.00041397,120]
[362388036,1748245299402,-1893.2,0.00041397,120]
[362388037,1748245299446,-1893.2,0.00041397,120]
[362388038,1748245299491,-1893.2,0.00041397,120]
[362388039,1748245299533,-1893.2,0.00041397,120]
[362388040,1748245299576,-1893.2,0.00041397,120]
[362388041,1748245299620,-1893.2,0.00041397,120]
[362388042,1748245299664,-1893.2,0.00041397,120]
[362388043,1748245299708,-1893.2,0.00041397,120]
[362388044,1748245299751,-1893.35907404,0.00041397,120]
[362388045,1748245299798,-795.00349033,0.000414,120]